[Event "HUN-chT Youth 2019"]
[Site "Budapest"]
[Date "2019.10.28"]
[Round "4.25"]
[White "Palczert, Botond"]
[Black "Gombocz, Zsofia"]
[Result "1-0"]
[ECO "D35"]
[WhiteElo "2039"]
[BlackElo "1917"]
[Annotator "NA"]
[PlyCount "79"]
[EventDate "2019.10.26"]
[EventType "team-tourn"]
[EventCountry "HUN"]
[SourceTitle "playchess.com"]
[Source "ChessBase"]
[SourceQuality "1"]
[TimeControl "5400+30"]

1. d4 {[%emt 0:03:47]} d5 {[%emt 0:00:00]} 2. c4 {[%emt 0:00:32]} e6 {[%emt 0:00:00]} 3. Nc3 {[%emt 0:00:16]} Nf6 {[%emt 0:00:00]} 4. cxd5 {[%emt 0:00:33]} exd5 {[%emt 0:00:00]} 5. Bg5 {[%emt 0:00:23]} Be7 {[%emt 0:00:42]} 6. e3 {[%emt 0:02:17]} c6 {[%emt 0:02:01]} 7. Bd3 {[%emt 0:00:45]} h6 {[%emt 0:01:03]} 8. Bf4 O-O 9. Nf3 {[%emt 0:06:34] D35: Queen's Gambit Declined: Exchange Variation} Be6 {[%emt 0:10:02]} (9... Bd6 10. Bg3 Bxg3 11. hxg3 Bg4 12. Qb3 Qc7 13. O-O-O Nbd7 14. Kb1 Rfe8 15. Rc1 Qb6 16. Nd2 Nf8 {1-0 (53) Turov,M (2585)-Volodin,A (2457) Tallinn 2019}) 10. O-O {[%emt 0:01:06]} Nbd7 {[%emt 0:01:39]} 11. h3 {[%emt 0:01:34]} Re8 {[%emt 0:03:59]} 12. Qc2 {[%emt 0:00:02]} Nb6 {[%emt 0:03:47]} 13. Bh2 {[%emt 0:15:51]} Nc4 {[%emt 0:11:53]} 14. Ne5 {[%emt 0:00:36]} Nxe5 {[%emt 0:01:21]} 15. dxe5 {[%emt 0:02:44]} Nd7 {[%emt 0:14:57]} 16. f4 $146 {[%emt 0:03:23]} ({Predecessor:} 16. Ne2 Nc5 17. Bh7+ Kh8 {1-0 (41) Srebrnic,A (2191)-Samanic,V (1644) Rijeka 2012}) 16... d4 $2 {[%emt 0:02:55]} ({Black should try} 16... Nc5 $14) 17. exd4 {[%emt 0:02:28]} Nb6 {[%emt 0:00:15]} 18. Ne2 {[%emt 0:11:00]} Bc8 {[%emt 0:08:59]} 19. f5 {[%emt 0:06:00]} Bg5 {[%emt 0:03:56]} 20. Kh1 {[%emt 0:09:43]} Nd5 {[%emt 0:01:37]} 21. Rf3 {[%emt 0:03:15]} Nb4 {[%emt 0:05:54]} 22. Qb3 {[%emt 0:01:05]} Nxd3 {[%emt 0:00:12]} 23. Qxd3 {[%emt 0:00:09]} b6 {[%emt 0:01:30]} 24. Rd1 {[%emt 0:05:17]} a5 {[%emt 0:04:59]} 25. Qc2 {[%emt 0:02:54]} Ba6 {[%emt 0:04:47]} (25... Ra7 {keeps fighting.} 26. Nf4 Ba6) 26. Ng3 {[%emt 0:02:09]} Qd5 {[%emt 0:01:36]} 27. b3 {[%emt 0:04:18]} Red8 {[%emt 0:07:16]} 28. Ne4 {[%emt 0:02:51]} c5 $18 {[%emt 0:00:36]} 29. Nxg5 {[%emt 0:04:01]} hxg5 {[%emt 0:00:08]} 30. f6 {[%emt 0:01:09]} gxf6 {[%emt 0:02:55]} 31. Rxf6 {[%emt 0:00:18]} Bb7 {[%emt 0:00:42]} 32. Rdf1 {[%emt 0:01:50]} Re8 {[%emt 0:02:53]} 33. Rxf7 {[%emt 0:03:02]} Qxf7 {[%emt 0:00:11]} 34. Rxf7 {[%emt 0:00:05]} Kxf7 {[%emt 0:00:07]} 35. Qh7+ {[%emt 0:00:16]} Ke6 {[%emt 0:00:18]} 36. Qxb7 {[%emt 0:00:29]} cxd4 {[%emt 0:00:15]} 37. Qc6+ {[%emt 0:01:21]} Kf7 {[%emt 0:00:58]} 38. Qf6+ {[%emt 0:00:10]} Kg8 {[%emt 0:00:16]} 39. Qxg5+ {[%emt 0:00:11]} Kf7 {[%emt 0:00:13]} 40. Qf6+ {[%emt 0:00:21]} 1-0

[Event "HUN-chT Youth 2019"]
[Site "Budapest"]
[Date "2019.10.28"]
[Round "4.26"]
[White "Barasits, Balint"]
[Black "Kozsik, Bende Barnabas"]
[Result "0-1"]
[ECO "B40"]
[WhiteElo "1988"]
[BlackElo "1943"]
[Annotator "NA RC"]
[PlyCount "74"]
[EventDate "2019.10.26"]
[EventType "team-tourn"]
[EventCountry "HUN"]
[SourceTitle "playchess.com"]
[Source "ChessBase"]
[SourceQuality "1"]
[TimeControl "5400+30"]

{[%evp 8,69,52,37,46,7,12,10,16,-10,-2,0,-11,32767,-34,-33,-27,-38,32767,32767,32767,-37,-35,32767,32767,-33,44,32767,0,-52,-39,32767,32767,32767,-99,-87,32767,32767,-141,32767,-117,32767,32767,32767,-295,-757,32767,-941,-950,-1560,-1660,-1575,-820,-743,-848,-739,32767,32767,32767,32767,32767,32767,-1443,-1426]} 1. e4 {[%emt 0:00:00]} c5 {[%emt 0:00:22]} 2. Nf3 {[%emt 0:00:00]} e6 {[%emt 0:00:27]} 3. c4 {[%emt 0:02:49]} Qc7 {[%emt 0:01:24]} 4. Nc3 {[%emt 0:00:57]} a6 {[%emt 0:01:15]} 5. Be2 {[%emt 0:04:30]} Nc6 {[%emt 0:01:15]} (5... b6 6. d4 cxd4 7. Nxd4 Bb7 8. Be3 Nf6 9. f3 Be7 10. O-O O-O 11. Kh1 d6 12. Rc1 Nbd7 13. b4 Rac8 14. a3 Rfe8 15. Qd2 Qb8 16. Rfd1 Bd8 17. Nb3 Bc7 18. Bf4 d5 19. Bxc7 Rxc7 20. cxd5 exd5 21. exd5 Nxd5 22. Nxd5 Bxd5 23. Nd4 b5 24. Bf1 Rxc1 25. Rxc1 {½-½ (40) Yu,Y (2738)-Karthikeyan,M (2578) Moscow 2017}) 6. O-O {[%emt 0:00:55] B40: Sicilian: 2...e6, Unusual lines} Nd4 {[%emt 0:01:45]} 7. d3 {[%emt 0:05:36]} g6 {[%emt 0:03:31]} 8. g3 $146 {[%emt 0:17:28]} ({Predecessor:} 8. Nxd4 cxd4 9. Nb1 Bg7 10. f4 Ne7 11. Qe1 O-O 12. Qh4 d5 13. Nd2 dxc4 14. dxc4 {1-0 (40) Navara,D (2479)-Hausner,I (2430) Kunzak 2001}) 8... Bg7 {[%emt 0:03:12]} 9. Bf4 {[%emt 0:01:06]} d6 {[%emt 0:03:15]} 10. Nxd4 {[%emt 0:00:21]} cxd4 {[%emt 0:01:46]} 11. Nb1 $1 {[%emt 0:07:35]} Ne7 {[%emt 0:03:31]} 12. Na3 {[%emt 0:03:39]} O-O {[%emt 0:04:12]} 13. Rc1 {[%emt 0:04:56]} b6 {[%emt 0:03:43]} 14. b4 {[%emt 0:04:20]} e5 {[%emt 0:02:13]} 15. Bd2 {[%emt 0:02:27]} Bb7 {[%emt 0:03:08]} 16. Qb3 {[%emt 0:10:44]} Rac8 {[%emt 0:03:18]} ({Better is} 16... Kh8 $11) 17. f3 {[%emt 0:08:02]} Qd7 {[%emt 0:04:50]} 18. Kg2 {[%emt 0:01:33]} h5 {[%emt 0:07:11]} 19. h4 {[%emt 0:00:30]} Kh7 {[%emt 0:00:26]} 20. b5 {[%emt 0:01:25]} a5 {[%emt 0:01:55]} 21. Nc2 {[%emt 0:01:37]} f5 {[%emt 0:03:14]} 22. Kh2 {[%emt 0:00:33]} Ng8 {[%emt 0:01:29]} 23. Ne1 {[%emt 0:05:27]} Rce8 {[%emt 0:02:28]} 24. Qc2 {[%emt 0:01:02]} fxe4 {[%emt 0:02:02]} 25. dxe4 {[%emt 0:00:08] [#]} Bc8 $1 {[%emt 0:01:15]} 26. Kg2 $2 {[%emt 0:02:26]} (26. Rf2 Qh3+ 27. Kg1) 26... Qh3+ {[%emt 0:00:38]} 27. Kf2 {[%emt 0:00:03]} Nf6 {[%emt 0:03:11]} 28. Nd3 {[%emt 0:08:17]} Nxe4+ {[%emt 0:01:09] Double Attack} 29. Ke1 {[%emt 0:00:08]} Qxg3+ {[%emt 0:00:22]} 30. Kd1 {[%emt 0:00:08]} Nxd2 {[%emt 0:01:03]} 31. Qxd2 {[%emt 0:03:17]} Bh6 {[%emt 0:00:42]} 32. f4 {[%emt 0:01:05]} exf4 {[%emt 0:02:56]} 33. Rf3 {[%emt 0:01:09]} Rxe2 {[%emt 0:00:54]} 34. Qxe2 {[%emt 0:01:32] [#]} Bg4 $19 {[%emt 0:02:38]} 35. Ne1 {[%emt 0:01:01]} Qxh4 {[%emt 0:02:55]} 36. Ng2 {[%emt 0:00:29]} Bxf3 {[%emt 0:00:26]} 37. Qxf3 {[%emt 0:00:12]} Qg4 {[%emt 0:01:02]} 0-1

[Event "HUN-chT Youth 2019"]
[Site "Budapest"]
[Date "2019.10.28"]
[Round "4.27"]
[White "Kelemen, Szabolcs"]
[Black "Kiraly, Barnabas"]
[Result "1-0"]
[ECO "B01"]
[WhiteElo "1960"]
[BlackElo "1742"]
[Annotator "NA RC"]
[PlyCount "35"]
[EventDate "2019.10.26"]
[EventType "team-tourn"]
[EventCountry "HUN"]
[SourceTitle "playchess.com"]
[Source "ChessBase"]
[SourceQuality "1"]
[TimeControl "5400+30"]

{[%evp 8,35,58,37,41,41,32767,32767,32767,32767,32767,32767,32767,0,49,36,96,6,311,333,331,332,295,32767,32767,32767,32767,32767,1648,-408]} 1. e4 {[%emt 0:00:00]} d5 {[%emt 0:00:32]} 2. exd5 {[%emt 0:00:00]} Qxd5 {[%emt 0:00:03]} 3. Nc3 {[%emt 0:00:01]} Qa5 {[%emt 0:00:03]} 4. d4 {[%emt 0:00:08]} Nf6 {[%emt 0:00:06]} 5. Bc4 {[%emt 0:00:10]} Bf5 {[%emt 0:00:08]} 6. Nf3 {[%emt 0:00:07]} e6 {[%emt 0:00:23]} 7. Bd2 {[%emt 0:00:07]} c6 {[%emt 0:00:14]} 8. Qe2 {[%emt 0:00:13]} Qc7 {[%emt 0:01:03]} 9. O-O-O {[%emt 0:00:16]} Be7 {[%emt 0:00:25]} 10. Rhe1 {[%emt 0:05:38]} O-O {[%emt 0:09:47]} ({Better is} 10... b5 $11 11. Bd3 Bxd3 12. Qxd3 Nbd7) 11. Nh4 {[%emt 0:02:52]} Bd6 {[%emt 0:02:13]} 12. f3 {[%emt 0:07:41]} ({White should play} 12. Nxf5 $16 exf5 13. Qf3) 12... Re8 $2 {[%emt 0:04:13]} (12... b5 $11 13. Nxf5 exf5) 13. Nxf5 {[%emt 0:09:47]} exf5 {[%emt 0:01:50] [#]} 14. Qxe8+ $1 {[%emt 0:00:08]} Nxe8 {[%emt 0:00:03]} 15. Rxe8+ {[%emt 0:00:04]} Bf8 {[%emt 0:00:01]} 16. Rde1 {[%emt 0:00:30]} b5 {[%emt 0:01:31]} 17. Nxb5 {[%emt 0:00:37]} cxb5 {[%emt 0:00:14] [#]} 18. Rxf8+ $19 {[%emt 0:00:12] Remove Defender} 1-0

[Event "HUN-chT Youth 2019"]
[Site "Budapest"]
[Date "2019.10.28"]
[Round "4.28"]
[White "Petroczy, Zoltan"]
[Black "Tancz, Janos"]
[Result "1-0"]
[ECO "B32"]
[WhiteElo "1573"]
[BlackElo "1486"]
[Annotator "NA RC"]
[PlyCount "71"]
[EventDate "2019.10.26"]
[EventType "team-tourn"]
[EventCountry "HUN"]
[SourceTitle "playchess.com"]
[Source "ChessBase"]
[SourceQuality "1"]
[TimeControl "5400+30"]

1. e4 {[%emt 0:00:00]} c5 {[%emt 0:00:00]} 2. Nf3 {[%emt 0:00:00]} Nc6 {[%emt 0:00:18]} 3. d4 {[%emt 0:00:41]} cxd4 {[%emt 0:00:10]} 4. Nxd4 {[%emt 0:02:08]} g6 {[%emt 0:00:11]} 5. Be3 {[%emt 0:02:27]} Bg7 {[%emt 0:01:20]} 6. Nc3 {[%emt 0:00:33]} Nf6 {[%emt 0:00:17]} 7. Nxc6 {[%emt 0:01:51]} bxc6 {[%emt 0:00:33]} 8. e5 {[%emt 0:01:08]} Ng8 {[%emt 0:02:56]} 9. f4 {[%emt 0:01:54]} d6 {[%emt 0:02:18]} 10. Bc4 {[%emt 0:01:41]} Nh6 {[%emt 0:02:05]} 11. Qd2 {[%emt 0:10:05]} O-O {[%emt 0:00:40]} 12. O-O-O {[%emt 0:00:17]} Nf5 {[%emt 0:00:22]} 13. exd6 {[%emt 0:02:48]} Nxe3 {[%emt 0:01:28]} 14. Qxe3 {[%emt 0:02:59]} exd6 {[%emt 0:00:15]} 15. Qd3 {[%emt 0:06:52]} d5 {[%emt 0:02:47]} 16. Bb3 {[%emt 0:00:25]} Bf5 {[%emt 0:00:47]} 17. Qf3 {[%emt 0:01:11]} Qc7 {[%emt 0:03:57]} 18. g4 {[%emt 0:02:02]} Bd7 {[%emt 0:01:53]} 19. h4 {[%emt 0:01:21]} Qc8 {[%emt 0:00:23]} 20. Rhg1 {[%emt 0:02:00]} a5 {[%emt 0:00:56]} 21. h5 {[%emt 0:01:38]} Bxc3 {[%emt 0:00:37]} 22. Qxc3 {[%emt 0:00:42]} a4 {[%emt 0:00:06]} 23. hxg6 {[%emt 0:00:18]} hxg6 {[%emt 0:00:53]} 24. Rh1 {[%emt 0:00:19]} f6 {[%emt 0:00:39]} 25. Qh3 {[%emt 0:00:08]} Kf7 {[%emt 0:00:20]} 26. Qh7+ {[%emt 0:01:07]} Ke8 {[%emt 0:00:18]} 27. Qxg6+ {[%emt 0:00:10]} Kd8 {[%emt 0:00:10]} 28. Bxd5 {[%emt 0:00:14]} cxd5 {[%emt 0:00:45]} 29. Rxd5 {[%emt 0:01:06]} Qc6 {[%emt 0:00:26]} 30. Rhd1 {[%emt 0:01:22]} Ra7 {[%emt 0:00:45]} 31. Qg7 {[%emt 0:02:40]} Re8 {[%emt 0:00:41]} 32. Rd6 {[%emt 0:00:19]} Qb5 {[%emt 0:01:13]} 33. Qxf6+ {[%emt 0:00:09]} Re7 {[%emt 0:00:12]} 34. Re6 {[%emt 0:00:25]} a3 {[%emt 0:02:00]} 35. Qxe7+ {[%emt 0:00:46]} Kc8 {[%emt 0:00:16]} 36. b3 {[%emt 0:01:02]} 1-0

[Event "HUN-chT Youth 2019"]
[Site "Budapest"]
[Date "2019.10.28"]
[Round "4.29"]
[White "Palczert, Hajnalka"]
[Black "Farkas, Boglarka"]
[Result "0-1"]
[ECO "A04"]
[WhiteElo "1531"]
[BlackElo "1391"]
[Annotator "NA"]
[PlyCount "144"]
[EventDate "2019.10.26"]
[EventType "team-tourn"]
[EventCountry "HUN"]
[SourceTitle "playchess.com"]
[Source "ChessBase"]
[SourceQuality "1"]
[TimeControl "5400+30"]

1. Nf3 {[%emt 0:01:58]} d6 {[%emt 0:01:14]} 2. d4 {[%emt 0:01:02]} Nc6 {[%emt 0:00:29]} 3. g3 {[%emt 0:01:20]} e5 {[%emt 0:00:41]} 4. Nc3 {[%emt 0:01:21]} exd4 {[%emt 0:05:49]} 5. Nxd4 {[%emt 0:00:42]} Nxd4 {[%emt 0:00:14]} 6. Qxd4 {[%emt 0:00:11]} Nf6 {[%emt 0:01:08]} 7. Bg2 {[%emt 0:01:14]} Be7 {[%emt 0:06:46]} 8. O-O {[%emt 0:02:23]} O-O {[%emt 0:00:48]} 9. Bf4 {[%emt 0:01:35]} Re8 {[%emt 0:02:33]} 10. Rad1 {[%emt 0:01:47]} a6 {[%emt 0:06:02]} 11. Rd2 {[%emt 0:05:20]} Nd7 {[%emt 0:03:53]} 12. Nd5 {[%emt 0:02:37]} Nb8 {[%emt 0:04:32]} 13. Rfd1 {[%emt 0:06:01]} Nc6 {[%emt 0:01:25]} 14. Nxe7+ {[%emt 0:04:37]} Qxe7 {[%emt 0:01:18]} 15. Bxc6 {[%emt 0:01:37]} bxc6 {[%emt 0:00:24]} 16. Qa4 {[%emt 0:05:30]} c5 {[%emt 0:05:44]} 17. Be3 {[%emt 0:02:52]} Bd7 {[%emt 0:02:48]} 18. Qf4 {[%emt 0:05:12]} Bb5 {[%emt 0:01:27]} 19. Kf1 {[%emt 0:02:18]} Qe5 {[%emt 0:05:47]} 20. c4 {[%emt 0:04:35]} Qxf4 {[%emt 0:00:50]} 21. Bxf4 {[%emt 0:00:36]} Bxc4 {[%emt 0:00:38]} 22. b3 {[%emt 0:00:53]} Bb5 {[%emt 0:00:31]} 23. Be3 {[%emt 0:01:13]} f6 {[%emt 0:00:51]} 24. Rd5 {[%emt 0:01:24]} Re7 {[%emt 0:02:46]} 25. a4 {[%emt 0:03:42]} Be8 {[%emt 0:03:26]} 26. Bd2 {[%emt 0:01:59]} Bf7 {[%emt 0:04:46]} 27. Rd3 {[%emt 0:01:06]} Rb8 {[%emt 0:03:27]} 28. Rc1 {[%emt 0:01:42]} Rxb3 {[%emt 0:02:44]} 29. Ba5 {[%emt 0:01:26]} Rxd3 {[%emt 0:02:44]} 30. exd3 {[%emt 0:00:25]} Bd5 {[%emt 0:01:07]} 31. Rb1 {[%emt 0:01:02]} Bc6 {[%emt 0:04:11]} 32. Ra1 {[%emt 0:00:43]} Kf7 {[%emt 0:00:33]} 33. Bc3 {[%emt 0:00:35]} Kg6 {[%emt 0:01:12]} 34. a5 {[%emt 0:00:35]} Bb5 {[%emt 0:00:34]} 35. Rd1 {[%emt 0:00:33]} d5 {[%emt 0:00:51]} 36. Bb2 {[%emt 0:00:43]} c4 {[%emt 0:01:43]} 37. dxc4 {[%emt 0:00:48]} Bxc4+ {[%emt 0:00:13]} 38. Kg2 {[%emt 0:00:10]} c6 {[%emt 0:00:22]} 39. Bd4 {[%emt 0:00:48]} Bb5 {[%emt 0:00:48]} 40. Bb6 {[%emt 0:00:52]} Re8 {[%emt 0:01:23]} 41. Rd4 {[%emt 0:00:41]} Re4 {[%emt 0:01:45]} 42. Rd2 {[%emt 0:00:43]} Re1 {[%emt 0:01:15]} 43. Rd4 {[%emt 0:01:02]} Re4 {[%emt 0:03:10]} 44. Rd2 {[%emt 0:00:25]} Kf5 {[%emt 0:00:11]} 45. Bc5 {[%emt 0:01:05]} Rc4 {[%emt 0:01:28]} 46. Bb6 {[%emt 0:00:27]} Rc1 {[%emt 0:00:29]} 47. h3 {[%emt 0:01:01]} g5 {[%emt 0:02:21]} 48. Rd4 {[%emt 0:01:44]} Rc4 {[%emt 0:00:33]} 49. Rd2 {[%emt 0:00:33]} h5 {[%emt 0:00:16]} 50. Rd1 {[%emt 0:00:31]} Re4 {[%emt 0:02:24]} 51. Rd2 {[%emt 0:00:39]} Ke6 {[%emt 0:04:41]} 52. Rd1 {[%emt 0:01:02]} Kd6 {[%emt 0:00:14]} 53. Bd8 {[%emt 0:01:28]} Ke6 {[%emt 0:00:43]} 54. Bb6 {[%emt 0:01:28]} g4 {[%emt 0:00:15]} 55. hxg4 {[%emt 0:00:59]} hxg4 {[%emt 0:00:09]} 56. Rd2 {[%emt 0:00:29]} Re1 {[%emt 0:00:57]} 57. Rd4 {[%emt 0:00:45]} f5 {[%emt 0:00:08]} 58. Rd2 {[%emt 0:00:22]} Be2 {[%emt 0:00:17]} 59. f4 {[%emt 0:01:42]} gxf3+ {[%emt 0:00:28]} 60. Kf2 {[%emt 0:01:31]} Rc1 {[%emt 0:00:43]} 61. Ke3 {[%emt 0:01:24]} c5 {[%emt 0:00:54]} 62. Kf4 {[%emt 0:00:51]} Rc4+ {[%emt 0:01:01]} 63. Ke3 {[%emt 0:00:30]} d4+ {[%emt 0:00:24]} 64. Kf4 {[%emt 0:00:55]} d3+ {[%emt 0:00:34]} 65. Ke3 {[%emt 0:00:26]} Re4+ {[%emt 0:00:22]} 66. Kf2 {[%emt 0:00:11]} c4 {[%emt 0:00:13]} 67. Be3 {[%emt 0:00:44]} c3 {[%emt 0:00:18]} 68. Ra2 {[%emt 0:00:40]} Rc4 {[%emt 0:00:37]} 69. Ke1 {[%emt 0:00:36]} Kd5 {[%emt 0:01:31]} 70. Bg5 {[%emt 0:00:22]} Kc6 {[%emt 0:00:53]} 71. Be3 {[%emt 0:00:19]} Kb5 {[%emt 0:00:16]} 72. Bg5 {[%emt 0:00:26]} Ra4 {[%emt 0:00:12]} 0-1

[Event "HUN-chT Youth 2019"]
[Site "Budapest"]
[Date "2019.10.28"]
[Round "4.30"]
[White "Nyuli, Leila"]
[Black "Kreiter, Lilla"]
[Result "1-0"]
[ECO "B32"]
[WhiteElo "1258"]
[BlackElo "1280"]
[Annotator "NA RC"]
[PlyCount "59"]
[EventDate "2019.10.26"]
[EventType "team-tourn"]
[EventCountry "HUN"]
[SourceTitle "playchess.com"]
[Source "ChessBase"]
[SourceQuality "1"]
[TimeControl "5400+30"]

1. e4 {[%emt 0:00:00]} c5 {[%emt 0:00:00]} 2. Nf3 {[%emt 0:00:00]} Nc6 {[%emt 0:00:19]} 3. d4 {[%emt 0:00:08]} cxd4 {[%emt 0:00:09]} 4. Nxd4 {[%emt 0:00:17]} g6 {[%emt 0:00:43]} 5. b3 {[%emt 0:00:46]} Bg7 {[%emt 0:00:42]} 6. Bb2 {[%emt 0:00:45]} Nf6 {[%emt 0:00:30]} 7. f3 {[%emt 0:07:16]} O-O {[%emt 0:02:38]} 8. Nc3 {[%emt 0:01:48]} d5 {[%emt 0:12:41]} 9. Nxc6 {[%emt 0:03:48]} bxc6 {[%emt 0:02:39]} 10. Rb1 {[%emt 0:02:03]} Qd6 {[%emt 0:07:42]} 11. Qe2 {[%emt 0:06:59]} dxe4 {[%emt 0:02:17]} 12. fxe4 {[%emt 0:00:32]} Qc5 {[%emt 0:02:43]} 13. Qc4 {[%emt 0:10:47]} Qe3+ {[%emt 0:04:41]} 14. Qe2 {[%emt 0:01:41]} Qf4 {[%emt 0:01:42]} 15. Qf3 {[%emt 0:01:58]} Qg5 {[%emt 0:01:55]} 16. Bc1 {[%emt 0:01:38]} Qc5 {[%emt 0:07:24]} 17. Qe3 {[%emt 0:01:01]} Nd7 {[%emt 0:03:41]} 18. Qxc5 {[%emt 0:00:55]} Nxc5 {[%emt 0:00:11]} 19. Bb2 {[%emt 0:00:39]} Bxc3+ {[%emt 0:00:22]} 20. Bxc3 {[%emt 0:00:31]} Nxe4 {[%emt 0:00:12]} 21. Bb2 {[%emt 0:00:29]} Rd8 {[%emt 0:00:42]} 22. Bc4 {[%emt 0:00:39]} Nd2 {[%emt 0:01:18]} 23. Rd1 {[%emt 0:00:26]} Nf3+ {[%emt 0:01:49]} 24. gxf3 {[%emt 0:00:19]} Bf5 {[%emt 0:00:34]} 25. Bd3 Bh3 {[%emt 0:01:01]} 26. Be4 {[%emt 0:02:09]} Rxd1+ {[%emt 0:00:57]} 27. Kxd1 {[%emt 0:00:15]} Rd8+ {[%emt 0:00:18]} 28. Kc1 {[%emt 0:00:14]} Rd6 {[%emt 0:00:58]} 29. Rd1 {[%emt 0:01:15]} Re6 {[%emt 0:00:26]} 30. Rd8# {[%emt 0:00:16]} 1-0

[Event "HUN-chT Youth 2019"]
[Site "Budapest"]
[Date "2019.10.28"]
[Round "4.32"]
[White "Gyurika, Tamas"]
[Black "Kratzmajer, Akos Gyorgy"]
[Result "0-1"]
[ECO "C55"]
[WhiteElo "1920"]
[BlackElo "2004"]
[Annotator "NA RC"]
[PlyCount "72"]
[EventDate "2019.10.26"]
[EventType "team-tourn"]
[EventCountry "HUN"]
[SourceTitle "playchess.com"]
[Source "ChessBase"]
[SourceQuality "1"]
[TimeControl "5400+30"]

{[%evp 15,70,-29,-12,32767,32767,32767,0,0,10,3,9,0,8,0,34,42,50,19,22,2,0,-102,32767,-28,0,-52,32767,32767,-13,-74,-50,-70,32767,-192,32767,32767,32767,-228,-193,32767,32767,32767,32767,-939,-1160,-911,32767,-1141,-1314,32767,32767,32767,32767,32767,32767,-29976,-29988]} 1. e4 {[%emt 0:00:00]} e5 {[%emt 0:00:00]} 2. Nf3 {[%emt 0:00:00]} Nc6 {[%emt 0:00:00]} 3. d4 {[%emt 0:00:00]} exd4 {[%emt 0:00:00]} 4. Bc4 {[%emt 0:00:00]} Nf6 {[%emt 0:00:00]} 5. e5 {[%emt 0:00:03]} d5 {[%emt 0:00:00]} 6. Bb5 {[%emt 0:00:03]} Ne4 {[%emt 0:00:00]} 7. Nxd4 {[%emt 0:00:05]} Bc5 {[%emt 0:00:00]} 8. O-O {[%emt 0:00:50]} O-O {[%emt 0:00:00]} 9. Bxc6 {[%emt 0:00:59]} bxc6 {[%emt 0:00:01]} 10. Be3 {[%emt 0:00:37]} Bxd4 {[%emt 0:03:05] C56: Two Knights: 4 d4 exd4 5 0-0 Nxe4} 11. Qxd4 {[%emt 0:01:21]} c5 {[%emt 0:01:02]} 12. Qd3 {[%emt 0:00:57]} c4 {[%emt 0:08:37]} (12... Bf5 13. Qe2 d4 14. f3 Ng5 15. Bxg5 Qxg5 16. Na3 Rfe8 17. Rae1 Rad8 18. Rf2 {½-½ (26) Carlsen,M (2875)-So,W (2754) Stavanger 2019}) 13. Qd1 {[%emt 0:01:31]} Bb7 {[%emt 0:05:26]} 14. Nd2 $146 {[%emt 0:05:08]} ({Predecessor:} 14. f3 Ng5 15. Qd2 Ne6 16. Rd1 c5 17. c3 Qc7 18. f4 Qc6 {0-1 (30) Organek,M-Kaula,I Slask 1996}) 14... Nxd2 {[%emt 0:07:04]} 15. Qxd2 {[%emt 0:00:19]} Qe7 {[%emt 0:00:03]} 16. Rfe1 {[%emt 0:00:46]} c5 {[%emt 0:04:06]} 17. Bg5 {[%emt 0:01:15]} Qe6 {[%emt 0:00:50]} 18. Qf4 {[%emt 0:00:38]} (18. f4 $11 {remains equal.}) 18... d4 {[%emt 0:06:20]} 19. Qg3 {[%emt 0:08:20]} Qg6 {[%emt 0:08:59]} 20. f4 {[%emt 0:04:17]} Be4 {[%emt 0:18:39]} 21. c3 {[%emt 0:06:15]} Rab8 {[%emt 0:03:14]} 22. Re2 {[%emt 0:02:20]} (22. Be7 $11) 22... Rb7 {[%emt 0:03:31]} 23. Rae1 {[%emt 0:01:05]} Bd3 {[%emt 0:00:48]} 24. Rf2 $2 {[%emt 0:00:39]} (24. Rd2 $11) 24... h6 {[%emt 0:01:56]} 25. Qf3 {[%emt 0:03:04]} Rfb8 {[%emt 0:02:00]} 26. Bh4 {[%emt 0:02:54]} Rxb2 {[%emt 0:00:28]} 27. cxd4 {[%emt 0:00:58]} cxd4 {[%emt 0:00:34]} 28. g4 {[%emt 0:02:16]} Rb1 {[%emt 0:06:46]} 29. Rd2 {[%emt 0:01:03]} Be4 {[%emt 0:02:15]} 30. f5 {[%emt 0:01:46]} Qc6 {[%emt 0:01:58]} 31. Qf4 {[%emt 0:00:46]} d3 {[%emt 0:07:38]} 32. e6 {[%emt 0:01:33]} c3 {[%emt 0:02:57]} 33. Rdd1 {[%emt 0:01:22]} d2 {[%emt 0:01:22]} 34. Rxb1 {[%emt 0:00:40]} Rxb1 {[%emt 0:00:11]} 35. Rxb1 {[%emt 0:00:35]} Bxb1 {[%emt 0:00:09]} 36. Qb8+ {[%emt 0:04:13]} Kh7 {[%emt 0:00:03]} 0-1